bitfinex/quotes_SOLUSD_20251218
["timestamp","ask_amount","ask_price","bid_price","bid_amount"]
[1766028181306,0.66,123.62,123.58,28.12976618]
[1766028181482,0.66,123.62,123.59,3.14773016]
[1766028181687,0.66,123.62,123.6,8.09048274]
[1766028182397,0.66,123.62,123.6,11.2382129]
[1766028182808,0.66,123.62,123.6,8.09048274]
[1766028183505,0.66,123.62,123.6,11.2382129]
[1766028183809,0.66,123.62,123.6,8.09048274]
[1766028184212,3.14773016,123.64,123.6,8.09048274]
[1766028184397,0.66,123.63,123.6,8.09048274]
[1766028185507,0.66,123.63,123.6,11.2382129]
[1766028186712,0.66,123.63,123.6,20.1182129]
[1766028188114,0.66,123.65,123.6,20.1182129]
[1766028188297,0.66,123.65,123.61,3.14773016]
[1766028188811,0.66,123.65,123.61,8.08978225]
[1766028189111,0.66,123.64,123.61,8.08978225]
[1766028189586,3.14773016,123.62,123.6,23.59808049]
[1766028189782,0.66,123.6,123.57,8.09240645]
[1766028189986,0.66,123.57,123.54,0.66]
[1766028190396,0.66,123.56,123.54,23.59808049]
[1766028190614,0.72,123.57,123.54,32.35251976]
[1766028190815,0.72,123.57,123.54,8.75443927]
[1766028191016,0.72,123.57,123.54,8.09443927]
[1766028191314,12.77767508,123.58,123.55,0.71]
[1766028191814,9.62994492,123.58,123.55,0.71]
[1766028191992,0.66,123.57,123.55,0.71]
[1766028194012,0.66,123.57,123.55,8.80377407]
[1766028194195,0.66,123.58,123.55,11.95150423]
[1766028196090,0.66,123.58,123.53,26.69988984]
[1766028196292,0.66,123.57,123.54,3.84773016]
[1766028197703,0.66,123.58,123.55,3.84773016]
[1766028198593,0.66,123.58,123.55,0.7]
[1766028198795,0.66,123.58,123.55,3.84773016]
[1766028199714,0.66,123.58,123.55,0.7]
[1766028199924,0.66,123.58,123.55,3.84773016]
[1766028200094,0.66,123.58,123.55,0.7]
[1766028200300,0.66,123.58,123.55,3.84773016]
[1766028203127,0.66,123.59,123.56,0.7]
[1766028203327,9.54,123.6,123.57,0.7]
[1766028203616,0.66,123.59,123.55,20.03603593]
[1766028203821,0.66,123.59,123.56,0.7]
[1766028204026,0.66,123.59,123.56,3.14773016]
[1766028204612,0.66,123.59,123.55,8.79442051]
[1766028204926,0.66,123.58,123.55,3.84773016]
[1766028206122,3.14773016,123.59,123.56,0.7]
[1766028206324,3.80773016,123.59,123.56,0.7]
[1766028206927,0.66,123.59,123.56,0.7]
[1766028208016,0.66,123.58,123.55,3.85002541]
[1766028208430,0.60665364,123.58,123.55,3.85002541]
[1766028211226,0.60665364,123.58,123.55,3.15002541]
[1766028211427,0.60665364,123.58,123.55,3.85002541]
[1766028220441,28.87223976,123.6,123.56,0.7]
[1766028220618,20.1209452,123.6,123.56,0.7]
[1766028220826,0.66,123.59,123.56,0.7]
[1766028222746,0.69,123.58,123.56,0.7]
[1766028223040,0.69,123.58,123.55,2.72595048]
[1766028223448,0.69,123.58,123.55,0.71]
[1766028223742,0.69,123.57,123.54,2.72595048]
[1766028224946,2.01595048,123.55,123.5,0.81]
[1766028225143,19.31767296,123.56,123.5,0.81]
[1766028225144,2.01595048,123.54,123.5,0.81]
[1766028226141,3.24530445,123.53,123.5,0.81]
[1766028226348,5.26125493,123.53,123.5,0.1]
[1766028227232,3.24530445,123.53,123.51,0.81]
[1766028227759,3.24530445,123.53,123.51,0.1]
[1766028228440,3.24530445,123.53,123.51,2.11595048]
[1766028228640,27.41121247,123.56,123.52,0.71]
[1766028228842,29.42716295,123.56,123.52,0.71]
[1766028229051,8.90708079,123.55,123.52,2.72595048]
[1766028229241,8.90708079,123.55,123.52,2.01595048]
[1766028230045,8.90708079,123.55,123.52,2.72595048]
[1766028230447,8.88,123.56,123.53,2.72595048]
[1766028230759,8.88,123.56,123.54,0.71]
[1766028230950,8.88,123.56,123.53,2.72595048]
[1766028231758,8.88,123.56,123.53,2.01595048]
[1766028232068,16.97323745,123.56,123.52,2.72595048]
[1766028236251,16.97323745,123.56,123.51,0.1]
[1766028236252,39.22227307,123.56,123.51,2.11595048]
[1766028236564,26.35770876,123.55,123.51,0.1]
[1766028236936,2.01595048,123.54,123.51,0.1]
[1766028237255,8.88,123.53,123.51,0.1]
[1766028238055,16.97526847,123.53,123.51,0.1]
[1766028238460,20.2210996,123.53,123.51,0.1]
[1766028238954,16.97526847,123.53,123.51,0.1]
[1766028240846,2.01595048,123.52,123.51,0.1]
[1766028241155,2.01595048,123.52,123.5,0.1]
[1766028241156,10.1118054,123.52,123.5,0.1]
[1766028241457,2.01595048,123.51,123.49,0.1]
[1766028242755,10.11287094,123.51,123.49,0.1]
[1766028243957,10.11287094,123.51,123.49,1e-08]
[1766028244138,8.88,123.5,123.49,1e-08]
[1766028244755,16.97716599,123.5,123.49,1e-08]
[1766028245630,18.99311647,123.5,123.48,0.1]
[1766028247936,16.97716599,123.5,123.48,0.1]
[1766028248136,8.88,123.5,123.48,0.81]
[1766028248357,8.88,123.5,123.48,0.1]
[1766028248542,8.88,123.5,123.48,0.81]
[1766028248857,8.88,123.5,123.48,0.1]
[1766028249369,16.97728788,123.5,123.48,0.1]
[1766028251661,8.88,123.5,123.48,2.11595048]
[1766028251862,8.88,123.5,123.49,0.72]
[1766028252068,8.88,123.5,123.48,2.11595048]
[1766028252261,8.88,123.5,123.49,0.69]
[1766028252964,8.88,123.5,123.48,2.80595048]
[1766028253666,8.88,123.5,123.48,2.11595048]
[1766028253973,10.1118535,123.52,123.5,0.69]
[1766028253974,8.88,123.52,123.5,0.69]
[1766028254178,10.43767296,123.53,123.5,0.69]
[1766028254471,18.99090436,123.54,123.5,0.69]
[1766028254665,18.99090436,123.54,123.5,2.01595048]
[1766028254968,16.97495388,123.54,123.51,0.69]
[1766028256049,18.99090436,123.54,123.51,0.69]
[1766028256550,18.99007894,123.55,123.51,2.70595048]
[1766028256758,18.99007894,123.55,123.52,0.69]
[1766028257267,18.98924842,123.56,123.52,0.69]
[1766028257647,16.97329794,123.56,123.52,0.69]
[1766028257874,2.01595048,123.55,123.52,0.69]
[1766028258442,10.10987732,123.55,123.52,0.69]
[1766028258647,2.01595048,123.54,123.52,0.69]
[1766028260850,8.09392684,123.55,123.52,0.69]
[1766028260851,10.10987732,123.55,123.52,0.69]
[1766028261757,2.01595048,123.54,123.52,0.69]
[1766028262367,2.01595048,123.54,123.5,0.69]
[1766028262576,2.01595048,123.53,123.5,0.69]
[1766028262968,8.09392684,123.55,123.5,0.69]
[1766028263161,2.01595048,123.54,123.5,0.69]
[1766028264054,10.11070795,123.54,123.5,0.69]
[1766028264655,8.09475747,123.54,123.5,0.69]
[1766028264871,10.11070795,123.54,123.5,0.69]
[1766028268766,2.01595048,123.54,123.51,0.69]
[1766028268967,10.10999533,123.55,123.51,0.69]
[1766028270064,2.01595048,123.54,123.51,0.69]
[1766028271586,8.09404485,123.55,123.51,0.69]
[1766028271787,2.01595048,123.54,123.51,0.69]
[1766028273786,10.11090192,123.54,123.51,0.69]
[1766028274366,10.11270389,123.54,123.51,0.69]
[1766028277298,8.09495144,123.54,123.51,0.69]
[1766028279807,8.09388911,123.55,123.51,0.69]
[1766028280096,10.11164156,123.55,123.51,0.69]
[1766028280273,2.01775245,123.54,123.51,0.69]
[1766028281492,10.11233237,123.54,123.51,0.69]
[1766028283397,11.24670727,123.55,123.51,0.69]
[1766028283699,27.4110799,123.56,123.51,3.15281816]
[1766028283903,27.41102318,123.56,123.53,0.67]
[1766028284886,30.56384134,123.56,123.53,0.67]
[1766028286698,27.41102318,123.56,123.53,0.67]
[1766028288482,30.56384134,123.56,123.53,0.67]
[1766028293331,18.53102318,123.56,123.53,0.67]
[1766028293490,10.43767296,123.56,123.53,0.67]
[1766028293993,13.59049112,123.56,123.53,0.67]
[1766028294188,21.68373533,123.56,123.53,0.67]
[1766028294386,3.15281816,123.55,123.49,0.67]
[1766028294598,3.15281816,123.55,123.51,0.67]
[1766028294998,11.24727303,123.55,123.51,0.67]
[1766028298410,3.15281816,123.55,123.51,0.67]
[1766028298612,21.68388274,123.56,123.52,0.67]
[1766028302716,3.15281816,123.55,123.52,0.67]
[1766028303125,3.15281816,123.54,123.5,0.67]
[1766028303296,3.15281816,123.55,123.5,0.67]
[1766028304103,12.03281816,123.55,123.51,0.67]
[1766028304302,8.88,123.55,123.52,0.67]
[1766028308021,12.03281816,123.55,123.52,0.67]
[1766028308419,20.1268812,123.55,123.52,0.67]
[1766028312425,3.15281816,123.54,123.52,0.67]
[1766028313226,3.15281816,123.54,123.48,27.44571469]
[1766028313426,3.15281816,123.54,123.49,0.71]
[1766028314129,3.15281816,123.54,123.49,3.86281816]
[1766028314312,3.15281816,123.54,123.5,0.71]
[1766028314626,11.2478467,123.54,123.5,0.71]
[1766028316830,3.15281816,123.52,123.48,0.1]
[1766028317031,3.15281816,123.51,123.48,0.81]
[1766028318945,11.24953293,123.51,123.48,0.81]
[1766028319515,11.24953293,123.51,123.48,0.1]
[1766028320414,11.24953293,123.51,123.48,0.81]
[1766028320616,3.15281816,123.5,123.48,0.81]
[1766028320814,3.15281816,123.49,123.47,0.1]
[1766028321037,11.25083098,123.49,123.47,0.1]
[1766028321540,3.15281816,123.48,123.45,0.81]
[1766028321709,11.25083098,123.49,123.45,0.81]
[1766028322135,3.15281816,123.48,123.45,0.81]
[1766028322316,11.25083098,123.49,123.45,0.81]
[1766028322516,8.88,123.49,123.46,0.71]
[1766028323416,8.88,123.49,123.46,3.86281816]
[1766028323637,16.97790092,123.49,123.45,3.96281816]
[1766028323940,16.97790092,123.49,123.46,0.71]
[1766028324343,16.97790092,123.49,123.45,0.1]
[1766028324344,40.37527329,123.49,123.45,0.1]
[1766028324715,40.37527329,123.49,123.45,0.81]
[1766028325815,37.22245513,123.49,123.46,0.71]
[1766028326014,40.37527329,123.49,123.45,3.25281816]
[1766028326214,40.37527329,123.49,123.45,3.96281816]
[1766028327136,37.22245513,123.49,123.45,3.96281816]
[1766028327353,40.37527329,123.49,123.45,3.96281816]
[1766028328253,37.22245513,123.49,123.45,3.96281816]
[1766028328561,40.37527329,123.49,123.45,3.96281816]
[1766028328844,40.37527329,123.49,123.45,0.81]
[1766028329344,16.97790092,123.49,123.46,0.71]
[1766028329921,8.88,123.49,123.47,0.71]
[1766028331526,8.88,123.49,123.46,0.71]
[1766028332525,20.13074838,123.49,123.46,0.71]
[1766028333550,0.69,123.48,123.41,8.20094979]
[1766028333742,3.15281816,123.42,123.37,0.1]
[1766028333947,3.15281816,123.41,123.37,0.1]
[1766028334122,19.31767296,123.44,123.37,8.90994492]
[1766028334327,19.31767296,123.44,123.37,12.06276308]
[1766028334527,3.15281816,123.42,123.37,12.06276308]
[1766028334931,3.15281816,123.42,123.37,20.16820752]
[1766028335234,3.15281816,123.41,123.37,0.1]
[1766028335642,11.25654587,123.4,123.38,0.71]
[1766028335842,3.15281816,123.39,123.38,0.71]
[1766028336152,3.15281816,123.39,123.37,0.1]
[1766028336379,3.84281816,123.38,123.37,1e-08]
[1766028336591,3.15281816,123.38,123.37,1e-08]
[1766028337864,8.79479735,123.39,123.37,1e-08]
[1766028338058,3.15281816,123.38,123.37,1e-08]
[1766028338662,3.15281816,123.38,123.36,0.1]
[1766028338858,8.10389852,123.4,123.36,0.81]
[1766028339186,3.15281816,123.39,123.36,0.81]
[1766028339355,3.15281816,123.38,123.36,0.81]
[1766028341755,3.16118945,123.37,123.34,0.71]
[1766028341971,3.83118945,123.37,123.34,0.71]
[1766028342367,3.16118945,123.35,123.34,0.71]
[1766028343281,3.16118945,123.36,123.34,0.71]
[1766028343474,2.02381414,123.36,123.34,0.71]
[1766028343885,10.90381414,123.4,123.34,0.71]
[1766028344049,2.02381414,123.37,123.34,0.71]
[1766028344446,0.67,123.38,123.33,0.76]
[1766028344670,0.67,123.37,123.33,0.76]
[1766028344870,2.02381414,123.35,123.33,0.76]
[1766028345058,10.13084724,123.35,123.33,0.76]
[1766028345461,0.67,123.33,123.3,0.66]
[1766028345665,2.69381414,123.33,123.3,0.66]
[1766028346876,0.67,123.38,123.32,0.66]
[1766028347077,0.67,123.37,123.33,0.66]
[1766028347882,0.67,123.38,123.35,0.66]
[1766028348087,2.69381414,123.39,123.36,0.66]
[1766028348254,0.67,123.39,123.36,0.66]
[1766028348454,2.69381414,123.4,123.36,0.66]
[1766028349483,2.02381414,123.4,123.36,0.66]
[1766028349659,0.67,123.39,123.36,0.66]
[1766028350677,0.67,123.39,123.36,2.68381414]
[1766028351786,0.67,123.39,123.36,0.66]
[1766028351968,0.67,123.39,123.36,2.68381414]
[1766028353289,8.10438634,123.39,123.34,8.10748741]
[1766028353464,8.10438634,123.39,123.35,2.68381414]
[1766028353465,0.67,123.38,123.35,2.68381414]
[1766028354378,8.10438634,123.39,123.36,0.66]
[1766028354589,8.77438634,123.39,123.36,0.66]
[1766028354785,8.10438634,123.39,123.36,0.66]
[1766028355007,0.67,123.38,123.36,0.66]
[1766028355284,0.67,123.4,123.36,2.68381414]
[1766028355858,0.67,123.4,123.37,2.68381414]
[1766028356182,8.88,123.41,123.38,2.02381414]
[1766028356377,9.55,123.41,123.38,2.68381414]
[1766028356580,0.67,123.4,123.37,2.02381414]
[1766028356772,0.67,123.4,123.37,2.68381414]
[1766028357372,0.67,123.4,123.38,0.66]
[1766028358073,11.10767296,123.42,123.39,2.68381414]
[1766028358985,11.10767296,123.42,123.4,0.66]
[1766028359189,11.10767296,123.42,123.4,2.68381414]
[1766028359374,11.10767296,123.42,123.4,0.66]
[1766028360161,0.67,123.46,123.41,2.02381414]
[1766028360464,0.67,123.45,123.42,0.66]
[1766028361462,40.49155669,123.49,123.45,0.66]
[1766028361463,0.67,123.49,123.45,0.66]
[1766028361664,0.67,123.49,123.46,0.66]
[1766028361972,0.67,123.49,123.46,2.68381414]
[1766028362175,0.67,123.49,123.46,0.66]
[1766028363188,0.67,123.48,123.43,17.00125817]
[1766028363384,2.69381414,123.48,123.44,0.66]
[1766028363699,0.67,123.48,123.45,0.66]
[1766028364789,0.67,123.49,123.46,0.66]
[1766028365174,20.55879243,123.5,123.47,0.66]
[1766028365175,0.67,123.5,123.47,0.66]
[1766028365488,8.76657617,123.51,123.48,0.66]
[1766028365866,8.09657617,123.51,123.48,0.66]
[1766028366070,0.67,123.5,123.47,2.68381414]
[1766028367287,0.67,123.5,123.47,0.66]
[1766028367481,0.67,123.5,123.47,2.68381414]
[1766028369501,0.67,123.5,123.47,0.66]
[1766028369807,0.67,123.5,123.47,2.68381414]
[1766028371000,0.92,123.52,123.48,2.02381414]
[1766028371191,0.2,123.52,123.49,0.71]
[1766028371380,0.92,123.52,123.49,0.71]
[1766028371579,9.01588446,123.52,123.49,2.73381414]
[1766028372388,9.01588446,123.52,123.49,0.71]
[1766028375104,9.01588446,123.52,123.49,2.73381414]
[1766028377921,9.01588446,123.52,123.49,0.71]
[1766028378227,9.01588446,123.52,123.48,2.02381414]
[1766028378228,0.68,123.48,123.44,11.56381414]
[1766028378786,0.68,123.48,123.45,0.66]
[1766028378989,0.68,123.48,123.45,2.68381414]
[1766028379177,11.11767296,123.49,123.46,2.02381414]
[1766028380502,19.21575283,123.49,123.45,0.66]
[1766028380697,19.21575283,123.49,123.45,2.68381414]
[1766028380897,19.21575283,123.49,123.46,2.68381414]
[1766028381088,19.21575283,123.49,123.46,0.66]
[1766028381292,21.23956697,123.49,123.46,0.66]
[1766028381710,0.68,123.47,123.44,0.66]
[1766028382509,10.80254167,123.48,123.44,0.66]
[1766028383491,0.68,123.47,123.44,2.68381414]
[1766028383901,0.68,123.47,123.44,0.66]
[1766028385314,2.70381414,123.47,123.44,0.66]
[1766028385816,0.68,123.47,123.44,0.66]
[1766028386699,0.68,123.47,123.43,9.54]
[1766028386700,0.68,123.46,123.43,9.54]
[1766028387215,0.68,123.46,123.43,8.88]
[1766028387408,0.68,123.46,123.44,0.66]
[1766028388311,2.70381414,123.47,123.44,0.66]
[1766028388702,10.80297313,123.47,123.44,0.66]
[1766028390598,0.68,123.46,123.44,0.66]
[1766028390815,0.68,123.46,123.43,11.56381414]
[1766028391103,0.68,123.46,123.43,10.90381414]
[1766028391502,0.68,123.46,123.43,11.56381414]
[1766028391816,0.68,123.46,123.43,10.90381414]
[1766028391990,2.02381414,123.47,123.44,0.66]
[1766028392389,0.68,123.47,123.44,0.66]
[1766028394312,2.02381414,123.47,123.44,0.66]
[1766028394509,0.68,123.46,123.44,0.66]
[1766028395319,2.70381414,123.47,123.44,0.66]
[1766028395497,2.02381414,123.47,123.44,0.66]
[1766028395811,0.68,123.46,123.44,0.66]
[1766028396010,0.68,123.46,123.43,11.56381414]
[1766028396202,0.68,123.46,123.44,0.66]
[1766028398119,0.68,123.47,123.44,0.66]
[1766028402325,0.71,123.46,123.44,0.66]
[1766028402527,2.73381414,123.47,123.44,0.66]
[1766028403307,0.71,123.47,123.44,0.66]
[1766028405524,3.15616449,123.47,123.44,0.66]
[1766028405722,3.86616449,123.47,123.44,0.66]
[1766028406027,0.71,123.47,123.44,0.66]
[1766028409629,0.71,123.47,123.45,0.71]
[1766028410922,0.71,123.47,123.43,8.10152796]
[1766028411123,0.71,123.47,123.44,0.71]
[1766028411528,0.71,123.47,123.43,8.88]
[1766028411529,0.71,123.46,123.43,8.88]
[1766028411837,0.71,123.46,123.43,9.59]
[1766028413732,0.71,123.45,123.41,11.25884615]
[1766028414029,3.15609346,123.44,123.4,0.71]
[1766028414218,0.71,123.43,123.41,9.59]
[1766028414619,3.86609346,123.44,123.41,9.59]
[1766028414919,0.71,123.43,123.41,9.59]
[1766028415216,3.86609346,123.44,123.41,9.59]
[1766028418848,0.71,123.44,123.41,9.59]
[1766028419145,0.71,123.44,123.42,0.71]
[1766028419320,3.86609346,123.45,123.42,0.71]
[1766028419520,11.25605734,123.46,123.42,0.71]
[1766028419729,11.25605734,123.46,123.43,0.71]
[1766028419730,3.86609346,123.46,123.43,0.71]
[1766028420238,0.71,123.46,123.43,0.71]
[1766028420537,0.71,123.47,123.44,0.71]
[1766028421741,0.71,123.46,123.44,0.71]
[1766028423142,0.71,123.46,123.43,11.96768353]
[1766028423343,0.71,123.46,123.43,11.25768353]
[1766028423543,0.71,123.46,123.44,0.71]
[1766028430238,3.86609346,123.47,123.44,0.71]
[1766028431344,0.68,123.46,123.44,0.71]
[1766028434432,3.82609346,123.48,123.44,0.71]
[1766028434731,0.67,123.48,123.45,0.7]
[1766028435854,3.82609346,123.48,123.45,0.7]
[1766028436059,0.67,123.47,123.45,0.7]
[1766028436843,0.67,123.47,123.44,0.7]
[1766028437462,0.67,123.46,123.44,0.7]
[1766028438263,0.67,123.47,123.44,0.7]
[1766028439350,3.82609346,123.47,123.44,0.7]
[1766028439939,0.67,123.47,123.44,0.7]
[1766028441046,0.67,123.46,123.44,0.7]
[1766028442841,3.82609346,123.47,123.44,0.7]
[1766028443758,0.67,123.47,123.44,0.7]
[1766028448060,0.67,123.46,123.43,8.88]
[1766028448364,0.67,123.45,123.43,9.58]
[1766028448577,0.67,123.46,123.41,0.7]
[1766028448869,0.67,123.44,123.41,0.7]
[1766028450262,0.67,123.44,123.42,0.7]
[1766028452264,0.67,123.44,123.41,0.7]
[1766028452456,0.67,123.43,123.4,20.84603838]
[1766028452651,0.67,123.43,123.4,29.64962382]
[1766028452867,0.67,123.43,123.41,0.7]
[1766028453564,0.67,123.44,123.41,0.7]
[1766028454769,0.67,123.45,123.42,0.7]
[1766028454962,0.67,123.45,123.43,0.7]
[1766028455967,0.67,123.45,123.42,0.7]
[1766028456174,0.67,123.44,123.42,0.7]
[1766028456343,0.67,123.45,123.42,3.15609346]
[1766028456549,0.67,123.45,123.43,0.7]
[1766028457053,0.67,123.45,123.42,3.85609346]
[1766028457974,102.5,123.52,123.45,0.7]
[1766028458154,0.67,123.51,123.48,0.7]
[1766028458556,0.67,123.51,123.47,3.15609346]
[1766028458557,0.67,123.51,123.47,3.85609346]
[1766028459080,0.67,123.5,123.47,3.85609346]
[1766028459974,11.45217925,123.52,123.47,11.2550357]
[1766028460176,0.87,123.52,123.49,3.85609346]
[1766028460356,0.2,123.52,123.51,0.7]
[1766028460967,0.2,123.52,123.5,0.7]
[1766028461484,0.2,123.52,123.5,3.85609346]
[1766028462593,0.2,123.52,123.49,12.03609346]
[1766028462785,3.15609346,123.51,123.47,12.68609346]
[1766028462957,0.71,123.5,123.46,3.80609346]
[1766028463286,0.71,123.49,123.45,12.68609346]
[1766028463584,0.71,123.48,123.45,9.53]
[1766028465684,0.71,123.48,123.45,11.54928205]
[1766028466079,8.09736231,123.5,123.47,0.65]
[1766028466280,0.71,123.5,123.47,2.66928205]
[1766028468365,2.21928205,123.52,123.49,0.65]
[1766028468577,0.71,123.51,123.48,2.66928205]
[1766028469583,0.71,123.51,123.48,0.65]
[1766028470482,0.71,123.51,123.48,2.66928205]
[1766028470882,0.71,123.51,123.48,0.65]
[1766028473005,0.71,123.51,123.47,0.65]
[1766028473191,0.71,123.51,123.47,2.01928205]
[1766028473389,0.71,123.51,123.47,0.65]
[1766028473390,0.71,123.5,123.47,0.65]
[1766028473585,0.71,123.5,123.48,0.65]
[1766028475141,2.72928205,123.51,123.48,0.65]
[1766028475987,2.7287321,123.51,123.48,0.65]
[1766028477488,10.11538004,123.51,123.46,8.09976883]
[1766028477689,10.11538004,123.51,123.47,0.65]
[1766028477690,0.71,123.5,123.47,0.65]
[1766028478306,0.71,123.49,123.47,0.65]
[1766028478784,2.7287321,123.5,123.47,0.65]
[1766028479710,2.0187321,123.5,123.47,0.65]
[1766028479885,0.71,123.5,123.47,0.65]
[1766028480709,0.71,123.5,123.46,10.76843209]
[1766028480710,0.71,123.49,123.46,10.76843209]
[1766028481103,0.71,123.49,123.47,0.65]
[1766028481411,2.7287321,123.49,123.46,0.65]
[1766028481614,0.71,123.48,123.46,0.65]
[1766028484723,2.0187321,123.49,123.46,0.65]
[1766028484894,2.7287321,123.49,123.46,0.65]
[1766028485813,0.71,123.49,123.46,0.65]
[1766028486718,2.7287321,123.48,123.45,9.53]
[1766028487022,0.71,123.48,123.46,0.65]
[1766028492724,2.7287321,123.49,123.46,0.65]
[1766028492919,0.71,123.47,123.44,2.0187321]
[1766028493120,0.71,123.47,123.44,9.56]
[1766028493725,0.71,123.47,123.44,0.68]
[1766028494825,10.82734524,123.48,123.44,0.68]
[1766028495209,10.82734524,123.48,123.44,2.0187321]
[1766028495526,0.71,123.47,123.44,0.68]
[1766028495905,0.71,123.47,123.43,19.00021078]
[1766028496128,0.71,123.47,123.44,0.68]
[1766028496328,0.71,123.47,123.44,2.6987321]
[1766028496924,0.71,123.47,123.44,2.0187321]
[1766028497227,0.71,123.47,123.44,2.6987321]
[1766028499033,0.71,123.47,123.44,0.68]
[1766028503036,0.71,123.44,123.41,0.68]
[1766028503233,0.71,123.44,123.41,8.78296344]
[1766028505022,0.71,123.44,123.41,8.10296344]
[1766028505236,0.71,123.44,123.41,8.78296344]
[1766028507032,0.71,123.44,123.42,0.68]
[1766028507240,8.1001992,123.46,123.43,0.68]
[1766028507241,0.71,123.46,123.43,0.68]
[1766028509038,2.7287321,123.46,123.43,0.68]
[1766028509246,0.71,123.45,123.42,0.68]
[1766028509536,2.0187321,123.45,123.41,10.80169554]
[1766028509733,2.0187321,123.45,123.42,0.68]
[1766028509918,2.7287321,123.45,123.42,0.68]
[1766028512339,0.71,123.45,123.42,8.10233044]
[1766028512670,2.7287321,123.46,123.43,0.68]
[1766028513157,0.71,123.45,123.43,0.68]
[1766028514370,2.7287321,123.47,123.44,0.68]
[1766028514568,0.71,123.47,123.44,0.68]
[1766028514771,10.82746535,123.48,123.44,0.68]
[1766028514951,0.71,123.47,123.44,0.68]
[1766028517371,0.71,123.48,123.45,0.68]
[1766028517552,2.7287321,123.48,123.45,0.68]
[1766028518925,0.71,123.48,123.45,0.68]
[1766028519172,0.71,123.5,123.47,0.68]
[1766028519954,2.7287321,123.49,123.46,0.68]
[1766028520191,0.71,123.49,123.46,0.68]
[1766028520565,2.7287321,123.49,123.46,0.68]
[1766028520987,2.7287321,123.49,123.46,8.09974825]
[1766028521181,0.71,123.49,123.47,0.68]
[1766028521372,0.71,123.5,123.47,0.68]
[1766028522286,2.7287321,123.5,123.47,0.68]
[1766028522492,0.66,123.49,123.47,0.68]
[1766028530067,0.66,123.5,123.47,0.68]
[1766028530790,0.66,123.49,123.47,0.68]
[1766028532589,0.66,123.47,123.43,0.66]
[1766028532792,3.814979,123.46,123.43,0.66]
[1766028534884,0.66,123.45,123.43,0.66]
[1766028536789,3.154979,123.46,123.43,0.66]
[1766028536790,11.91481972,123.46,123.43,0.66]
[1766028537191,0.66,123.45,123.43,0.66]
[1766028540503,11.25481972,123.46,123.43,0.66]
[1766028540683,11.91481972,123.46,123.43,0.66]
[1766028541476,11.91442052,123.47,123.43,0.66]
[1766028542905,11.91601246,123.47,123.43,0.66]
[1766028543804,0.66,123.46,123.43,0.66]
[1766028546518,0.66,123.47,123.44,0.66]
[1766028546686,10.43767296,123.43,123.37,8.10531853]
[1766028547009,10.43767296,123.43,123.39,0.66]
[1766028547010,0.66,123.42,123.39,0.66]
[1766028548107,0.66,123.42,123.4,0.65]
[1766028549796,10.43767296,123.44,123.42,0.65]
[1766028549987,3.15657094,123.46,123.4,8.10359158]
[1766028549988,8.81017565,123.46,123.43,3.80657094]
[1766028550309,10.43767296,123.45,123.43,3.80657094]
[1766028550611,11.14767296,123.45,123.43,3.80657094]
[1766028550809,11.14767296,123.45,123.43,0.65]